[Event "Queens Festival Europe 2022"]
[Site "Tornelo"]
[Date "2022.06.19"]
[Round "9.1"]
[White "Helgadottir, Idunn"]
[Black "Valiyeva, Asnad"]
[Result "1/2-1/2"]
[ECO "D12"]
[WhiteElo "1570"]
[BlackElo "1237"]
[Annotator "NA RC"]
[PlyCount "141"]
[EventDate "2022.06.19"]
[EventType "swiss"]
[EventCountry "NET"]
[SourceTitle "playchess.com"]
[Source "ChessBase"]
[SourceQuality "1"]
[TimeControl "180+2"]

1. d4 {[%emt 0:00:02]} d5 {[%emt 0:00:05]} 2. Nf3 {[%emt 0:00:05]} Nf6 {[%emt 0:00:03]} 3. e3 {[%emt 0:00:02]} Bf5 {[%emt 0:00:02]} 4. c4 {[%emt 0:00:01]} c6 {[%emt 0:00:02]} 5. Nc3 {[%emt 0:00:02]} e6 {[%emt 0:00:02]} 6. cxd5 {[%emt 0:00:03]} exd5 {[%emt 0:00:02]} 7. Bd3 {[%emt 0:00:03]} Bg4 {[%emt 0:00:02]} 8. h3 {[%emt 0:00:02]} Bh5 {[%emt 0:00:02]} 9. O-O {[%emt 0:00:04]} Bd6 {[%emt 0:00:02]} 10. Bd2 {[%emt 0:00:07]} Nbd7 {[%emt 0:00:03]} 11. Rc1 {[%emt 0:00:03]} O-O {[%emt 0:00:02]} 12. Be2 {[%emt 0:00:11]} Ne4 {[%emt 0:00:04]} 13. Nxe4 {[%emt 0:00:04]} dxe4 {[%emt 0:00:03]} 14. Nh2 {[%emt 0:00:10]} Bxe2 {[%emt 0:00:03]} 15. Qxe2 {[%emt 0:00:02]} Bxh2+ {[%emt 0:00:03]} 16. Kxh2 {[%emt 0:00:01]} Qc7+ {[%emt 0:00:02]} 17. Kg1 {[%emt 0:00:02]} f5 {[%emt 0:00:02]} 18. Bb4 {[%emt 0:00:05]} Rf7 {[%emt 0:00:07]} 19. Qc4 {[%emt 0:00:04]} Nb6 {[%emt 0:00:08]} 20. Qb3 {[%emt 0:00:04]} Nd5 {[%emt 0:00:07]} 21. Rfd1 {[%emt 0:00:19]} Rd8 {[%emt 0:00:07]} 22. Qa3 {[%emt 0:00:08]} Nxb4 {[%emt 0:00:03]} 23. Qxb4 {[%emt 0:00:02]} Qb6 {[%emt 0:00:02]} 24. Qc4 {[%emt 0:00:07]} Rd5 {[%emt 0:00:03]} 25. b3 {[%emt 0:00:12]} Qb5 {[%emt 0:00:04]} 26. Qxb5 {[%emt 0:00:15]} Rxb5 {[%emt 0:00:04]} 27. Rc5 {[%emt 0:00:06]} a6 {[%emt 0:00:04]} 28. Rxb5 {[%emt 0:00:03]} axb5 {[%emt 0:00:02]} 29. d5 {[%emt 0:00:02]} Rd7 {[%emt 0:00:03]} 30. d6 {[%emt 0:00:05]} Kf7 {[%emt 0:00:03]} 31. Kf1 {[%emt 0:00:23]} Ke6 {[%emt 0:00:03]} 32. Ke1 {[%emt 0:00:01]} Rxd6 {[%emt 0:00:02]} 33. Rxd6+ {[%emt 0:00:02]} Kxd6 {[%emt 0:00:02]} 34. Kd2 {[%emt 0:00:01]} Ke5 {[%emt 0:00:04]} 35. g3 {[%emt 0:00:06]} g5 {[%emt 0:00:02]} 36. Ke2 {[%emt 0:00:05]} f4 {[%emt 0:00:03]} 37. g4 {[%emt 0:00:07]} c5 {[%emt 0:00:05]} 38. Kd2 {[%emt 0:00:04]} Kd5 {[%emt 0:00:07]} 39. Kc3 {[%emt 0:00:02]} b6 {[%emt 0:00:04]} 40. Kc2 {[%emt 0:00:02]} b4 {[%emt 0:00:03]} 41. Kd2 {[%emt 0:00:01]} b5 {[%emt 0:00:02]} 42. Kc2 {[%emt 0:00:02]} c4 {[%emt 0:00:02]} 43. Kd2 {[%emt 0:00:07]} c3+ {[%emt 0:00:02]} 44. Kc2 {[%emt 0:00:01]} Ke5 {[%emt 0:00:04]} 45. Kc1 {[%emt 0:00:01]} Kf6 {[%emt 0:00:04]} 46. Kc2 {[%emt 0:00:01]} h5 {[%emt 0:00:02]} 47. Kc1 {[%emt 0:00:03]} Kg7 {[%emt 0:00:17]} 48. Kc2 {[%emt 0:00:05]} Kg6 {[%emt 0:00:04]} 49. Kc1 {[%emt 0:00:01]} f3 {[%emt 0:00:06]} 50. Kc2 {[%emt 0:00:03]} hxg4 {[%emt 0:00:02]} 51. hxg4 {[%emt 0:00:03]} Kf6 {[%emt 0:00:02]} 52. Kc1 {[%emt 0:00:03]} Ke5 {[%emt 0:00:02]} 53. Kc2 {[%emt 0:00:01]} Kd5 {[%emt 0:00:03]} 54. Kc1 {[%emt 0:00:02]} Kd6 {[%emt 0:00:01]} 55. Kc2 {[%emt 0:00:01]} Ke7 {[%emt 0:00:02]} 56. Kc1 {[%emt 0:00:01]} Kf6 {[%emt 0:00:01]} 57. Kc2 {[%emt 0:00:01]} Kg6 {[%emt 0:00:02]} 58. Kc1 {[%emt 0:00:03]} Kg7 {[%emt 0:00:02]} 59. Kc2 {[%emt 0:00:05]} Kf8 {[%emt 0:00:02]} 60. Kc1 {[%emt 0:00:01]} Ke7 {[%emt 0:00:02]} 61. Kc2 {[%emt 0:00:01]} Kd8 {[%emt 0:00:02]} 62. Kc1 {[%emt 0:00:01]} Kc7 {[%emt 0:00:02]} 63. Kc2 {[%emt 0:00:01]} Kb6 {[%emt 0:00:02]} 64. Kc1 {[%emt 0:00:01]} Kc5 {[%emt 0:00:01]} 65. Kc2 {[%emt 0:00:02]} Kd5 {[%emt 0:00:02]} 66. Kc1 {[%emt 0:00:01]} Ke6 {[%emt 0:00:02]} 67. Kc2 {[%emt 0:00:01]} Kd7 {[%emt 0:00:02]} 68. Kc1 {[%emt 0:00:01]} Kc6 {[%emt 0:00:02]} 69. Kc2 {[%emt 0:00:02]} Kb6 {[%emt 0:00:02]} 70. Kc1 {[%emt 0:00:02]} Kc5 {[%emt 0:00:02]} 71. Kc2 {[%emt 0:00:05]} 1/2-1/2

[Event "Queens Festival Europe 2022"]
[Site "Tornelo"]
[Date "2022.06.19"]
[Round "9.2"]
[White "Ismayil, Malak"]
[Black "Sikorova, Olga"]
[Result "1-0"]
[ECO "C07"]
[WhiteElo "2001"]
[BlackElo "2173"]
[Annotator "TA"]
[PlyCount "103"]
[EventDate "2022.06.19"]
[EventType "swiss"]
[EventCountry "NET"]
[SourceTitle "playchess.com"]
[Source "ChessBase"]
[SourceQuality "1"]
[TimeControl "180+2"]

{[%evp 12,103,14,0,6,23,28,18,37,34,47,-9,0,0,38,-20,-20,-12,-12,-7,65,68,93,86,102,86,97,100,114,91,99,95,99,102,111,100,101,104,108,99,225,231,215,209,223,189,183,117,125,102,152,48,118,104,151,82,180,114,689,675,798,783,867,829,881,846,799,0,872,857,1090,1076,6890,974,1071,1059,1039,918,1372,1387,2532,2334,29985,29986,29986,29983,29988,29988,29990,29991,29992,29990,29990,29991]} 1. e4 {[%emt 0:00:02]} e6 {[%emt 0:00:08]} 2. d4 {[%emt 0:00:03]} d5 {[%emt 0:00:00]} 3. Nd2 {[%emt 0:00:01]} c5 {[%emt 0:00:02]} 4. exd5 {[%emt 0:00:05]} Qxd5 {[%emt 0:00:02]} 5. dxc5 {[%emt 0:00:03]} Bxc5 {[%emt 0:00:02]} 6. Ngf3 {[%emt 0:00:02]} Nf6 {[%emt 0:00:02]} 7. Bc4 {[%emt 0:00:01]} Qc6 {[%emt 0:00:02] C07: French Tarrasch: 3...c5, 4 Ngf3 and 4 exd5 Qxd5.} 8. O-O {[%emt 0:00:04]} Nbd7 {[%emt 0:00:08] is the legacy move (8...0-0).} 9. Qe2 {[%emt 0:00:03]} Qc7 {[%emt 0:00:03] The position is equal.} 10. Nb3 {[%emt 0:00:03]} Bd6 {[%emt 0:00:03] [#]} 11. Bg5 $146 {[%emt 0:00:05]} (11. Nbd4 $1 $14) ({Predecessor:} 11. Nbd4 a6 12. Rd1 O-O 13. Bg5 h6 14. Bh4 b6 15. c3 Re8 16. Bb3 Bb7 17. Bg3 Bxg3 18. hxg3 {1-0 (33) Ruiz Zenteno,L (2093)-Ramos Valdes,M Talcahuano 2012}) 11... h6 {[%emt 0:00:03]} 12. Bh4 {[%emt 0:00:02]} b6 {[%emt 0:00:11]} 13. Bg3 {[%emt 0:00:05]} (13. Nbd4 $14 O-O 14. Nb5) 13... Bxg3 $11 {[%emt 0:00:02]} 14. hxg3 {[%emt 0:00:04][%cal Oc4e6]} Bb7 {[%emt 0:00:01]} 15. Nbd4 {[%emt 0:00:16][%cal Oc4e6]} a6 {[%emt 0:00:12] [#]} (15... O-O $11) 16. Bxe6 $1 {[%emt 0:00:08]} O-O {[%emt 0:00:30]} (16... fxe6 17. Nxe6) 17. Bb3 {[%emt 0:00:08] White is more active.} Nc5 {[%emt 0:00:07]} 18. c3 {[%emt 0:00:05]} (18. Qe5 {is interesting.} Qd7 19. Qf4 Be4 20. Rad1) 18... Nxb3 {[%emt 0:00:04]} 19. axb3 {[%emt 0:00:01]} a5 {[%emt 0:00:01]} 20. Qc2 {[%emt 0:00:04]} Rae8 {[%emt 0:00:07]} 21. Rfe1 {[%emt 0:00:03]} Be4 {[%emt 0:00:04]} 22. Qd2 {[%emt 0:00:03]} Re7 {[%emt 0:00:14]} 23. Re2 {[%emt 0:00:05]} Rfe8 {[%emt 0:00:10]} 24. Rae1 {[%emt 0:00:02]} Qb7 {[%emt 0:00:14]} 25. Qf4 {[%emt 0:00:13]} Nh7 {[%emt 0:00:58]} (25... Qd7 $16) 26. Nd2 $18 {[%emt 0:00:21] Pair of Knights!} Bd5 {[%emt 0:00:04]} 27. Rxe7 {[%emt 0:00:26]} Rxe7 {[%emt 0:00:02]} 28. Rxe7 {[%emt 0:00:01]} Qxe7 {[%emt 0:00:01]} 29. Kf1 {[%emt 0:00:02]} ({White should try} 29. Qb8+ $18 Nf8 30. Qxb6) 29... Nf8 $16 {[%emt 0:00:04]} 30. Qb8 {[%emt 0:00:10]} Qf6 {[%emt 0:00:06]} (30... Qg5 $142 31. Ke2 (31. N4f3 Bxf3 32. Nxf3 Qc1+ 33. Ke2 Qxb2+ 34. Nd2 Qxc3 $15) 31... Bxg2) 31. Qc8 {[%emt 0:00:30]} (31. f3 $16) 31... g6 {[%emt 0:00:03]} (31... Qg5 $14 32. Ke2 (32. N4f3 Bxf3 33. Nxf3 Qc1+ 34. Ke2 Qxb2+ 35. Nd2 b5 $11) 32... Bxg2) 32. Qc7 {[%emt 0:00:12]} Kg7 {[%emt 0:00:06]} (32... Ne6 $142 33. Qxb6 Bxg2+ 34. Kg1 (34. Kxg2 $2 Nf4+ 35. Kf3 Qxb6 $19) 34... Bd5) 33. Qf4 {[%emt 0:00:02]} (33. Ke1 $142) 33... Qe7 {[%emt 0:00:02] [#]} (33... Nd7 $16) 34. Nc2 {[%emt 0:00:08]} ({Better is} 34. Nf5+ $1 $18 {[%mdl 512]} gxf5 35. Qd4+ Kg6 36. Qxd5) 34... Ne6 $2 {[%emt 0:00:05][%mdl 8192]} (34... Nd7 $16) 35. Qe5+ $18 {[%emt 0:00:02]} f6 {[%emt 0:00:02]} 36. Qxd5 {[%emt 0:00:02]} Ng5 {[%emt 0:00:01]} 37. Ne3 {[%emt 0:00:03]} h5 {[%emt 0:00:01]} 38. Qd4 {[%emt 0:00:01]} Qe6 {[%emt 0:00:02]} 39. Qd5 $2 {[%emt 0:00:03]} (39. Nd5 $18) 39... Qe8 $2 {[%emt 0:00:04][%mdl 8192]} (39... Qe7 $11 40. Ndc4 Qf7) 40. Qb7+ {[%emt 0:00:03]} Kh6 {[%emt 0:00:02]} 41. Qxb6 {[%emt 0:00:01]} Qe5 {[%emt 0:00:01]} 42. Qd4 {[%emt 0:00:03] Hoping for f4.} Qe6 {[%emt 0:00:02]} 43. c4 {[%emt 0:00:01][%cal Bc3c4,Bc4c5,Bc5c6][%mdl 32]} Nf7 {[%emt 0:00:03]} 44. Qd5 {[%emt 0:00:03]} Qe7 {[%emt 0:00:02]} 45. c5 {[%emt 0:00:03]} Ne5 {[%emt 0:00:01]} 46. Ndc4 {[%emt 0:00:01] Intending Qg8 and mate.} Qc7 {[%emt 0:00:03]} 47. Nxe5 {[%emt 0:00:03] White mates.} fxe5 {[%emt 0:00:01]} 48. Nc4 {[%emt 0:00:01]} e4 {[%emt 0:00:03]} 49. Qd6 {[%emt 0:00:04]} Qg7 {[%emt 0:00:04]} 50. c6 {[%emt 0:00:04]} e3 {[%emt 0:00:00]} 51. fxe3 {[%emt 0:00:02]} Qf7+ {[%emt 0:00:04]} 52. Qf4+ {[%emt 0:00:01] Weighted Error Value: White=0.36/Black=0.55} 1-0

[Event "Queens Festival Europe 2022"]
[Site "Tornelo"]
[Date "2022.06.19"]
[Round "9.2"]
[White "Mdivani, Maka"]
[Black "Mammadova, Aysel"]
[Result "0-1"]
[ECO "E22"]
[WhiteElo "1901"]
[BlackElo "1893"]
[Annotator "NA RC"]
[PlyCount "94"]
[EventDate "2022.06.19"]
[EventType "swiss"]
[EventCountry "NET"]
[SourceTitle "playchess.com"]
[Source "ChessBase"]
[SourceQuality "1"]
[TimeControl "180+2"]

1. d4 {[%emt 0:00:05]} Nf6 {[%emt 0:00:05]} 2. c4 {[%emt 0:00:03]} e6 {[%emt 0:00:02]} 3. Nc3 {[%emt 0:00:05]} Bb4 {[%emt 0:00:02]} 4. Qb3 {[%emt 0:00:02]} Bxc3+ {[%emt 0:00:02]} 5. Qxc3 {[%emt 0:00:03]} b6 {[%emt 0:00:02]} 6. f3 {[%emt 0:00:04]} O-O {[%emt 0:00:04]} 7. e4 {[%emt 0:00:02]} d6 {[%emt 0:00:02]} 8. Bd3 {[%emt 0:00:04]} Nbd7 {[%emt 0:00:02]} 9. Ne2 {[%emt 0:00:02]} e5 {[%emt 0:00:02]} 10. d5 {[%emt 0:00:05]} Nc5 {[%emt 0:00:03]} 11. Bc2 {[%emt 0:00:03]} a5 {[%emt 0:00:02]} 12. O-O {[%emt 0:00:06]} Ne8 {[%emt 0:00:04]} 13. f4 {[%emt 0:00:05]} Bg4 {[%emt 0:00:08]} 14. Ng3 {[%emt 0:00:02]} exf4 {[%emt 0:00:10]} 15. Bxf4 {[%emt 0:00:05]} Qe7 {[%emt 0:00:06]} 16. Rae1 {[%emt 0:00:03]} Nd7 {[%emt 0:00:05]} 17. Nf5 {[%emt 0:00:11]} Bxf5 {[%emt 0:00:03]} 18. exf5 {[%emt 0:00:02]} Qf6 {[%emt 0:00:04]} 19. Qg3 {[%emt 0:00:59]} g6 {[%emt 0:00:28]} 20. b3 {[%emt 0:00:11]} Ng7 {[%emt 0:00:06]} 21. Bg5 {[%emt 0:00:08]} Qd4+ {[%emt 0:00:03]} 22. Be3 {[%emt 0:00:08]} Qb2 {[%emt 0:00:02]} 23. Bb1 {[%emt 0:00:17]} Rae8 {[%emt 0:00:11]} 24. Qh4 {[%emt 0:00:15]} Qf6 {[%emt 0:00:22]} 25. Bg5 {[%emt 0:00:08]} Qc3 {[%emt 0:00:09]} 26. Be7 {[%emt 0:00:20]} Ne5 {[%emt 0:00:34]} 27. Bxf8 {[%emt 0:00:05]} Rxf8 {[%emt 0:00:02]} 28. f6 {[%emt 0:00:05]} Nh5 {[%emt 0:00:09]} 29. Be4 {[%emt 0:00:03]} Qd4+ {[%emt 0:00:03]} 30. Kh1 {[%emt 0:00:03]} Nd7 {[%emt 0:00:13]} 31. g4 {[%emt 0:00:01]} Nhxf6 {[%emt 0:00:02]} 32. g5 {[%emt 0:00:05]} Nxe4 {[%emt 0:00:04]} 33. Rxe4 {[%emt 0:00:01]} Qd3 {[%emt 0:00:02]} 34. Ref4 {[%emt 0:00:02]} Ne5 {[%emt 0:00:05]} 35. Qf2 {[%emt 0:00:03]} Qh3 {[%emt 0:00:04]} 36. Rf6 {[%emt 0:00:03]} Ng4 {[%emt 0:00:04]} 37. Qg2 {[%emt 0:00:04]} Qxg2+ {[%emt 0:00:05]} 38. Kxg2 {[%emt 0:00:01]} Nxf6 {[%emt 0:00:03]} 39. Rxf6 {[%emt 0:00:02]} Ra8 {[%emt 0:00:03]} 40. h4 {[%emt 0:00:01]} a4 {[%emt 0:00:02]} 41. Rf2 {[%emt 0:00:05]} axb3 {[%emt 0:00:03]} 42. axb3 {[%emt 0:00:01]} Ra3 {[%emt 0:00:02]} 43. Rf3 {[%emt 0:00:02]} Kf8 {[%emt 0:00:04]} 44. Kg3 {[%emt 0:00:01]} Ke7 {[%emt 0:00:02]} 45. Kf4 {[%emt 0:00:01]} Ra1 {[%emt 0:00:03]} 46. Ke4 {[%emt 0:00:02]} Re1+ {[%emt 0:00:03]} 47. Kd4 {[%emt 0:00:02]} Rd1+ {[%emt 0:00:02]} 0-1

[Event "Queens Festival Europe 2022"]
[Site "Tornelo"]
[Date "2022.06.19"]
[Round "9.2"]
[White "Lampard, Alice"]
[Black "van den Brink, Nienke"]
[Result "1-0"]
[ECO "A80"]
[WhiteElo "1756"]
[BlackElo "1771"]
[Annotator "NA RC"]
[PlyCount "65"]
[EventDate "2022.06.19"]
[EventType "swiss"]
[EventCountry "NET"]
[SourceTitle "playchess.com"]
[Source "ChessBase"]
[SourceQuality "1"]
[TimeControl "180+2"]

1. d4 {[%emt 0:00:02]} f5 {[%emt 0:00:04]} 2. Bg5 {[%emt 0:00:04]} Nf6 {[%emt 0:00:06]} 3. Bxf6 {[%emt 0:00:03]} exf6 {[%emt 0:00:03]} 4. e3 {[%emt 0:00:10]} d5 {[%emt 0:00:05]} 5. Nf3 {[%emt 0:00:10]} Bd6 {[%emt 0:00:02]} 6. c4 {[%emt 0:00:07]} c6 {[%emt 0:00:03]} 7. Nc3 {[%emt 0:00:03]} Be6 {[%emt 0:00:07]} 8. cxd5 {[%emt 0:00:09]} Bxd5 {[%emt 0:00:07]} 9. Nxd5 {[%emt 0:00:03]} cxd5 {[%emt 0:00:01]} 10. Bb5+ {[%emt 0:00:03]} Nc6 {[%emt 0:00:03]} 11. Qa4 {[%emt 0:00:03]} Qc7 {[%emt 0:00:04]} 12. Rc1 {[%emt 0:00:13]} Rc8 {[%emt 0:00:08]} 13. O-O {[%emt 0:00:16]} O-O {[%emt 0:00:02]} 14. h3 {[%emt 0:00:16]} a6 {[%emt 0:00:12]} 15. Bxc6 {[%emt 0:00:04]} bxc6 {[%emt 0:00:01]} 16. Qxa6 {[%emt 0:00:06]} c5 {[%emt 0:00:29]} 17. dxc5 {[%emt 0:00:05]} Be7 {[%emt 0:00:09]} 18. Qe6+ {[%emt 0:00:05]} Kh8 {[%emt 0:00:03]} 19. Qxf5 {[%emt 0:00:10]} Qb7 {[%emt 0:00:12]} 20. Nd4 {[%emt 0:00:15]} Bxc5 {[%emt 0:00:06]} 21. Ne6 {[%emt 0:00:04]} Qd7 {[%emt 0:00:11]} 22. Qg4 {[%emt 0:00:03]} f5 {[%emt 0:00:13]} 23. Nxc5 {[%emt 0:00:09]} Rxc5 {[%emt 0:00:05]} 24. Qb4 {[%emt 0:00:04]} Rcc8 {[%emt 0:00:09]} 25. Rfd1 {[%emt 0:00:06]} Rfd8 {[%emt 0:00:05]} 26. Qf4 {[%emt 0:00:08]} Rb8 {[%emt 0:00:11]} 27. b3 {[%emt 0:00:03]} Ra8 {[%emt 0:00:07]} 28. a4 {[%emt 0:00:06]} Rab8 {[%emt 0:00:04]} 29. Qe5 {[%emt 0:00:06]} Rxb3 {[%emt 0:00:07]} 30. Rc7 {[%emt 0:00:01]} Re8 {[%emt 0:00:31]} 31. Rxd7 {[%emt 0:00:03]} Rxe5 {[%emt 0:00:01]} 32. Rd8+ {[%emt 0:00:01]} Re8 {[%emt 0:00:02]} 33. Rxe8# {[%emt 0:00:01]} 1-0

[Event "Queens Festival Europe 2022"]
[Site "Tornelo"]
[Date "2022.06.19"]
[Round "9.3"]
[White "Kordzadze, Nino"]
[Black "Gueci, Tea"]
[Result "0-1"]
[ECO "A04"]
[WhiteElo "2043"]
[BlackElo "2248"]
[Annotator "TA"]
[PlyCount "144"]
[EventDate "2022.06.19"]
[EventType "swiss"]
[EventCountry "NET"]
[SourceTitle "playchess.com"]
[Source "ChessBase"]
[SourceQuality "1"]
[TimeControl "180+2"]

{[%evp 9,144,0,8,14,30,22,28,24,23,17,20,8,2,-16,12,2,75,14,14,-18,3,0,-10,-118,45,-152,-147,-169,-139,-153,-127,-127,-128,-132,-140,-137,-118,-118,-116,-116,-118,-135,-129,-139,-139,-143,-139,-167,-164,-196,-185,-255,-216,-268,-252,-248,-252,-250,-257,-254,-241,-646,-641,-633,-620,-610,-92,-100,-81,-147,-158,-722,-550,-517,-352,-331,-259,-237,-148,-241,-256,-292,-274,-288,-275,-303,-252,-250,-251,-254,-246,-257,-236,-222,-188,-177,-75,-76,-76,-252,-252,-636,-107,-107,-108,-108,-138,-29976,-29977,-29971,-97,-29999,-29985,-29985,-29985,-29985,-29986,-29982,-29942,-29973,-29974,-29958,-29963,-29983,-29984,-29984,-29985,-29984,-29986,-29986,-29986,-29986,-29985,-29996,-29986,-29987,-29986]} 1. g3 {[%emt 0:00:02]} g6 {[%emt 0:00:05]} 2. Bg2 {[%emt 0:00:02]} Bg7 {[%emt 0:00:00]} 3. Nf3 {[%emt 0:00:01]} c5 {[%emt 0:00:02]} 4. O-O {[%emt 0:00:01]} Nc6 {[%emt 0:00:01]} 5. e3 {[%emt 0:00:10][%cal Be2e3,Be3d4,Bd4d5][%mdl 32]} d6 {[%emt 0:00:01]} 6. d4 {[%emt 0:00:03] A04: Unusual lines after 1 Nf3 and King's Indian Attack.} cxd4 {[%emt 0:00:09]} 7. exd4 {[%emt 0:00:01]} Bg4 {[%emt 0:00:06][%cal Oc6d4]} 8. c3 {[%emt 0:00:05] [#] White has an edge.} Nf6 $146 {[%emt 0:00:08]} ({Predecessor:} 8... Rc8 9. h3 Bd7 10. Be3 Nf6 11. Nbd2 Nd5 12. Rc1 O-O 13. Ne4 Nxe3 14. fxe3 Rc7 {0-1 (57) Goetz,D-Antz,W freechess.de 2020}) 9. Re1 {[%emt 0:00:03]} O-O {[%emt 0:00:01]} 10. Bg5 {[%emt 0:00:04]} h6 {[%emt 0:00:03]} 11. Bf4 {[%emt 0:00:02]} (11. Bxf6 $5 Bxf6 12. Nbd2 $11) 11... Re8 {[%emt 0:00:13][%cal Oe7e5]} 12. d5 {[%emt 0:00:08]} Na5 {[%emt 0:00:17]} (12... e5 $11 13. dxe6 (13. dxc6 bxc6 14. Be3 e4 $11) 13... Bxe6) 13. h3 {[%emt 0:00:17]} (13. Na3 $16) 13... Bd7 $11 {[%emt 0:00:09]} 14. Qc1 {[%emt 0:00:22]} Kh7 $36 {[%emt 0:00:04][%mdl 2048] Black is more active.} 15. Nd4 {[%emt 0:00:16]} Nc4 {[%emt 0:00:12] Black wants to play ...Nb6.} 16. Nd2 {[%emt 0:00:06]} (16. Nc2 $11) 16... Rc8 $2 {[%emt 0:00:09]} ({Better is} 16... Nb6 $1 $17 17. Be3 Nbxd5) 17. N2b3 $2 {[%emt 0:00:12]} (17. Nxc4 $14 {keeps the upper hand.} Rxc4 18. Qd2) 17... Nb6 $1 $17 {[%emt 0:00:29]} 18. Qd2 {[%emt 0:01:09]} Nbxd5 {[%emt 0:00:08] Strongly threatening ...e5.} 19. Ne2 {[%emt 0:00:15]} Nxf4 {[%emt 0:00:11]} 20. Nxf4 {[%emt 0:00:03]} Bc6 {[%emt 0:00:05]} 21. Nd5 {[%emt 0:00:05]} Nxd5 {[%emt 0:00:18]} 22. Bxd5 {[%emt 0:00:02]} Bxd5 {[%emt 0:00:00]} 23. Qxd5 {[%emt 0:00:01] [#]} Qb6 $1 {[%emt 0:00:01]} 24. Rad1 {[%emt 0:00:11]} (24. Qxf7 $2 Rf8 25. Qd5 Rxf2 $19) 24... Rcd8 {[%emt 0:00:09]} 25. Re4 {[%emt 0:00:02]} ({Wrong is} 25. Qxf7 $2 Rf8 26. Qd5 Qxf2+ 27. Kh1 Qxb2 $19) 25... e6 {[%emt 0:00:01]} 26. Qd2 {[%emt 0:00:01]} d5 {[%emt 0:00:02]} 27. Rb4 {[%emt 0:00:02]} Qc7 {[%emt 0:00:03]} 28. Ra4 {[%emt 0:00:02]} a6 {[%emt 0:00:03]} 29. Nd4 {[%emt 0:00:01]} e5 {[%emt 0:00:02][%cal Be6e5,Be5d4,Bd4d3,Bd3d2][%mdl 32]} 30. Nb3 {[%emt 0:00:03]} (30. Nc2 $142) 30... Qc8 {[%emt 0:00:06]} 31. Ra5 {[%emt 0:00:02]} d4 {[%emt 0:00:06]} ({Stronger than} 31... Qxh3 32. Rxd5 Rxd5 33. Qxd5 $15) 32. cxd4 {[%emt 0:00:02]} exd4 {[%emt 0:00:00] White must now prevent ...d3.} 33. Kh2 {[%emt 0:00:01]} d3 {[%emt 0:00:03] And now ...b6 would win.} 34. Rc5 {[%emt 0:00:02]} Qd7 {[%emt 0:00:06] Hoping for ...Re4.} 35. Rdc1 $2 {[%emt 0:00:02]} (35. Qf4) 35... Re2 $19 {[%emt 0:00:02]} 36. Qf4 {[%emt 0:00:03]} d2 {[%emt 0:00:13]} 37. Rd1 {[%emt 0:00:02]} g5 $2 {[%emt 0:00:17]} (37... Qd3 $19 38. Rxd2 Rxd2 39. Nxd2 Qxd2) 38. Qf3 $17 {[%emt 0:00:01]} Qd3 {[%emt 0:00:03] Black is much more active.} 39. Qxd3+ {[%emt 0:00:09]} (39. Kg2 $142) 39... Rxd3 {[%emt 0:00:00]} 40. Rc7 $2 {[%emt 0:00:02]} (40. Kg2 $17) 40... Rxf2+ {[%emt 0:00:02]} 41. Kg1 {[%emt 0:00:02]} Re2 {[%emt 0:00:01]} 42. Kf1 {[%emt 0:00:01] Prevents Re1+.} Re6 {[%emt 0:00:05]} 43. Rxf7 {[%emt 0:00:04]} Red6 {[%emt 0:00:02] Threatens to win with ...Kg6.} 44. Ke2 {[%emt 0:00:02]} (44. Nc5 $17 Re3 45. Kf2) 44... Kg6 {[%emt 0:00:01]} 45. Re7 {[%emt 0:00:02][%cal Rd1d2]} Rxg3 {[%emt 0:00:02] The board is on fire.} 46. Rxd2 {[%emt 0:00:02]} Rg2+ {[%emt 0:00:01]} 47. Kd1 {[%emt 0:00:01]} Rdxd2+ {[%emt 0:00:01]} 48. Nxd2 {[%emt 0:00:01]} Bxb2 {[%emt 0:00:02]} 49. Rxb7 $19 {[%emt 0:00:02][%mdl 4096] Endgame KRB-KRN} Bc3 {[%emt 0:00:01]} 50. Ne4 {[%emt 0:00:02]} Bd4 {[%emt 0:00:02] Inhibits Rb6+.} 51. Rd7 {[%emt 0:00:02]} Be3 {[%emt 0:00:02]} 52. Rd6+ {[%emt 0:00:02]} Kh5 {[%emt 0:00:03]} (52... Kf5 $19 {and Black stays clearly on top.} 53. Nc3 Bf4 54. Rxh6 Rd2+ 55. Ke1 Rc2) 53. Nf6+ {[%emt 0:00:01]} Kh4 {[%emt 0:00:01]} 54. Re6 $2 {[%emt 0:00:02]} (54. Ng4 $17) 54... Bf4 {[%emt 0:00:02]} 55. Ng8 $2 {[%emt 0:00:02]} (55. Rxa6 h5 56. a4) 55... Kxh3 $2 {[%emt 0:00:03]} (55... h5 $19 {is more deadly.} 56. Rxa6 Kxh3) 56. Rxh6+ $17 {[%emt 0:00:01]} Kg3 {[%emt 0:00:03]} 57. Rxa6 {[%emt 0:00:02]} Kf3 {[%emt 0:00:02] ( -> ...Rd2+)} 58. Nf6 $2 {[%emt 0:00:02][%mdl 8192]} (58. Ra3+ $17 Be3 59. Nh6 (59. Nf6 Rd2+ 60. Ke1 Rc2 $19)) 58... Rd2+ {[%emt 0:00:04]} 59. Ke1 {[%emt 0:00:01]} Rb2 $2 {[%emt 0:00:01]} (59... Rd3 {mates} 60. Nh5 Be5 61. Rc6 Bc3+ 62. Rxc3 Rxc3 63. Nf6 Ra3 64. Nh7 g4 65. Ng5+ Kg2 66. Kd2 Rxa2+ 67. Ke3 Ra3+ 68. Ke4 g3 69. Nh7 Kf1 70. Ng5 g2 71. Nf3 {[#]} Rxf3 $1 {[%mdl 512]} 72. Kxf3 g1=Q 73. Ke4 Qc5 74. Kf4 Ke2 75. Ke4 Qd6 76. Kf5 Kf3 77. Kg5 Qe6 78. Kh5 Kf4 79. Kh4 Qh6#) 60. a4 $2 {[%emt 0:00:03][%mdl 8192]} (60. Kd1 $17) 60... g4 {[%emt 0:00:02][%cal Rb2b1] Black mates.} 61. Kd1 {[%emt 0:00:02]} g3 {[%emt 0:00:01]} 62. Nh5 {[%emt 0:00:02]} g2 {[%emt 0:00:04][%cal Rg2g1]} 63. Rg6 {[%emt 0:00:01]} Rb1+ {[%emt 0:00:02]} 64. Kc2 {[%emt 0:00:01]} g1=Q {[%emt 0:00:02]} 65. Rxg1 {[%emt 0:00:02]} Rxg1 {[%emt 0:00:00]} 66. Nxf4 {[%emt 0:00:02]} Kxf4 {[%emt 0:00:00] KR-KP} 67. Kb3 {[%emt 0:00:01]} Ra1 {[%emt 0:00:01]} 68. Kb4 {[%emt 0:00:01]} Ke5 {[%emt 0:00:01]} 69. Kb5 {[%emt 0:00:01]} Kd6 {[%emt 0:00:01]} 70. a5 {[%emt 0:00:00]} Kc7 {[%emt 0:00:02]} 71. Ka6 {[%emt 0:00:01]} Kb8 {[%emt 0:00:01]} 72. Kb6 {[%emt 0:00:02]} Rb1+ {[%emt 0:00:01] Weighted Error Value: White=0.83/Black=0.61} 0-1